bitfinex/quotes_SOLUSD_20250903
["timestamp","ask_amount","ask_price","bid_price","bid_amount"]
[1756896751359,0.06,210.22,210.21,5.12556268]
[1756896752150,0.06,210.22,210.21,5.42714761]
[1756896752358,0.06,210.22,210.21,9.88271029]
[1756896754357,0.06,210.22,210.21,41.96556268]
[1756896755438,0.06,210.22,210.21,5.12556268]
[1756896756449,0.06,210.22,210.21,9.88271029]
[1756896759638,0.06,210.22,210.21,11.78906082]
[1756896761351,0.06,210.22,210.21,48.60906082]
[1756896762464,0.06,210.22,210.21,11.78906082]
[1756896762665,0.06,210.22,210.21,48.60906082]
[1756896763636,0.06,210.22,210.21,46.70271029]
[1756896766244,0.06,210.22,210.2,79.73]
[1756896766445,0.06,210.22,210.21,41.97556268]
[1756896766770,0.06,210.22,210.21,5.15556268]
[1756896766939,0.06,210.22,210.21,41.97556268]
[1756896767966,0.06,210.22,210.21,46.73271029]
[1756896769259,0.06,210.22,210.21,126.43271029]
[1756896775378,0.06,210.22,210.21,79.7]
[1756896775572,0.06,210.22,210.21,121.25714761]
[1756896775871,0.06,210.22,210.21,79.7]
[1756896776169,0.06,210.22,210.21,120.95556268]
[1756896776850,0.06,210.22,210.21,116.5]
[1756896777492,0.06,210.22,210.21,121.25714761]
[1756896779799,0.06,210.22,210.21,116.5]
[1756896780378,0.77,210.22,210.21,116.5]
[1756896780589,5.22556268,210.22,210.21,36.8]
[1756896780788,5.22556268,210.22,210.2,0.03]
[1756896781112,4.45556268,210.21,210.2,0.03]
[1756896781711,9.92271029,210.21,210.2,0.03]
[1756896782397,5.16556268,210.21,210.2,0.03]
[1756896782801,9.92271029,210.21,210.2,0.03]
[1756896783789,35.92271029,210.21,210.2,0.03]
[1756896785384,49.5183043,210.21,210.2,0.03]
[1756896785697,23.5183043,210.21,210.2,0.03]
[1756896786074,49.5183043,210.21,210.2,0.03]
[1756896786880,23.5183043,210.21,210.2,0.03]
[1756896787274,49.5183043,210.21,210.2,0.03]
[1756896787480,23.5183043,210.21,210.2,0.03]
[1756896789385,30.75782662,210.18,210.17,0.03]
[1756896789586,4.45556268,210.18,210.17,0.03]
[1756896789982,30.75741889,210.2,210.17,0.03]
[1756896790186,30.45556268,210.18,210.17,0.03]
[1756896790775,4.45556268,210.18,210.17,0.03]
[1756896790980,9.2133893,210.18,210.17,0.03]
[1756896791607,9.9133893,210.18,210.17,0.03]
[1756896792888,23.50898331,210.18,210.17,0.03]
[1756896795992,4.75782662,210.18,210.17,0.03]
[1756896796201,26.0,210.19,210.17,0.69]
[1756896796508,0.06,210.21,210.18,0.66]
[1756896796701,0.06,210.21,210.19,4.45556268]
[1756896796882,0.06,210.21,210.2,0.66]
[1756896797083,0.06,210.21,210.2,5.11556268]
[1756896797307,0.06,210.22,210.21,9.21271029]
[1756896797505,0.06,210.22,210.21,7.60430289]
[1756896797818,0.06,210.22,210.21,45.08430289]
[1756896802918,0.06,210.22,210.21,42.23714761]
[1756896803094,0.06,210.22,210.21,45.08430289]
[1756896809827,1e-08,210.22,210.21,164.3798969]
[1756896809992,1e-08,210.22,210.21,166.28588409]
[1756896810196,1e-08,210.22,210.21,164.3798969]
[1756896810899,1e-08,210.22,210.21,164.3598969]
[1756896812800,1e-08,210.22,210.21,138.3598969]
[1756896813233,1e-08,210.22,210.21,164.3598969]
[1756896813404,1e-08,210.22,210.21,166.26588409]
[1756896814597,1e-08,210.22,210.21,164.3598969]
[1756896814794,1e-08,210.22,210.21,164.3898969]
[1756896815315,1e-08,210.22,210.21,127.5898969]
[1756896815513,1e-08,210.22,210.21,164.3898969]
[1756896816423,1e-08,210.22,210.21,138.3898969]
[1756896816821,1e-08,210.22,210.21,127.5898969]
[1756896817016,1e-08,210.22,210.21,164.3698969]
[1756896818536,1e-08,210.22,210.21,150.77430289]
[1756896823428,1e-08,210.22,210.21,113.99430289]
[1756896823725,1e-08,210.22,210.21,150.77430289]
[1756896823936,1e-08,210.22,210.21,110.48714761]
[1756896824118,1e-08,210.22,210.21,79.73]
[1756896824315,0.67000001,210.22,210.21,116.51]
[1756896824528,1e-08,210.22,210.21,116.51]
[1756896825115,1e-08,210.22,210.21,79.73]
[1756896825309,1e-08,210.22,210.21,116.51]
[1756896825537,0.67000001,210.22,210.21,116.51]
[1756896827134,1e-08,210.22,210.21,121.26714761]
[1756896827338,1e-08,210.22,210.21,124.76430289]
[1756896828516,1e-08,210.22,210.21,124.11430289]
[1756896829920,1e-08,210.22,210.21,121.26714761]
[1756896830119,1e-08,210.22,210.21,124.11430289]
[1756896832925,1e-08,210.22,210.21,116.51]
[1756896833846,1e-08,210.22,210.21,121.26714761]
[1756896834151,1e-08,210.22,210.21,41.56714761]
[1756896834328,1e-08,210.22,210.21,44.41430289]
[1756896835634,1e-08,210.22,210.21,45.06430289]
[1756896836527,1e-08,210.22,210.21,44.41430289]
[1756896837036,1e-08,210.22,210.21,41.56714761]
[1756896838835,1e-08,210.22,210.21,44.41430289]
[1756896839424,1e-08,210.22,210.21,7.63430289]
[1756896839631,1e-08,210.22,210.21,44.41430289]
[1756896840356,1e-08,210.22,210.21,45.06430289]
[1756896840540,1e-08,210.22,210.21,42.21714761]
[1756896840856,1e-08,210.22,210.21,45.06430289]
[1756896841926,1e-08,210.22,210.21,36.81]
[1756896842132,3.51715529,210.22,210.21,0.03]
[1756896842363,3.51715529,210.22,210.21,36.81]
[1756896843927,8.27407661,210.22,210.21,36.81]
[1756896844126,8.27407661,210.22,210.21,0.03]
[1756896844749,21.86967062,210.22,210.21,0.03]
[1756896845652,36.17479901,210.22,210.21,0.03]
[1756896850042,35.50479901,210.22,210.21,0.03]
[1756896850232,14.3051284,210.22,210.21,0.68]
[1756896850431,1e-08,210.22,210.21,0.68]
[1756896853265,1e-08,210.22,210.21,0.03]
[1756896853949,1e-08,210.22,210.21,0.71]
[1756896854267,7.60407661,210.22,210.21,0.03]
[1756896855449,2.84715529,210.22,210.21,0.71]
[1756896855964,2.84715529,210.22,210.21,0.03]
[1756896857058,7.60407661,210.22,210.21,0.03]
[1756896857454,9.20831848,210.22,210.21,0.03]
[1756896858167,5.47692133,210.22,210.21,0.03]
[1756896858476,9.20831848,210.22,210.21,0.03]
[1756896859973,1e-08,210.22,210.21,0.03]
[1756896860164,1e-08,210.22,210.21,0.71]
[1756896861057,1e-08,210.22,210.21,0.03]
[1756896861574,1e-08,210.22,210.21,0.71]
[1756896861774,4.45139716,210.22,210.21,0.03]
[1756896862555,4.45139716,210.22,210.21,0.71]
[1756896862757,4.45139716,210.22,210.21,0.03]
[1756896864477,9.20831848,210.22,210.21,0.03]
[1756896865079,1e-08,210.22,210.21,0.03]
[1756896865456,1e-08,210.22,210.21,0.71]
[1756896865651,1e-08,210.22,210.21,0.03]
[1756896868783,1e-08,210.22,210.21,0.71]
[1756896881310,1e-08,210.22,210.21,9.91854476]
[1756896882008,1e-08,210.22,210.21,5.16139715]
[1756896882194,1e-08,210.22,210.21,0.71]
[1756896887619,1e-08,210.22,210.21,0.03]
[1756896888330,1e-08,210.22,210.21,0.73]
[1756896889014,1e-08,210.22,210.21,0.03]
[1756896889513,1e-08,210.22,210.21,0.73]
[1756896890112,1e-08,210.22,210.21,0.03]
[1756896890310,1e-08,210.22,210.21,0.73]
[1756896894435,1e-08,210.22,210.21,0.03]
[1756896895020,1e-08,210.22,210.21,0.73]
[1756896895519,1e-08,210.22,210.21,0.03]
[1756896895937,1e-08,210.22,210.21,0.73]
[1756896896534,1e-08,210.22,210.21,0.03]
[1756896897346,1e-08,210.22,210.21,36.77]
[1756896898342,1e-08,210.22,210.21,37.47]
[1756896899254,1e-08,210.22,210.21,36.77]
[1756896900154,1e-08,210.22,210.21,0.03]
[1756896900347,1e-08,210.22,210.21,36.77]
[1756896900650,1e-08,210.22,210.21,37.47]
[1756896901229,1e-08,210.22,210.21,36.77]
[1756896901634,1e-08,210.22,210.21,37.47]
[1756896906339,1e-08,210.22,210.21,36.77]
[1756896910175,1e-08,210.22,210.21,37.47]
[1756896911072,1e-08,210.22,210.21,46.67854476]
[1756896911577,1e-08,210.22,210.21,41.92139715]
[1756896911785,1e-08,210.22,210.21,45.42348054]
[1756896919471,1e-08,210.22,210.21,43.81966229]
[1756896921887,1e-08,210.22,210.21,36.75]
[1756896927198,1e-08,210.22,210.21,0.03]
[1756896927366,1e-08,210.22,210.21,36.75]
[1756896927565,0.69000001,210.22,210.21,36.75]
[1756896927782,1e-08,210.22,210.21,36.75]
[1756896930463,1e-08,210.22,210.21,45.05472651]
[1756896932361,0.06,210.24,210.23,26.0]
[1756896932669,0.06,210.24,210.23,82.01075181]
[1756896932983,0.06,210.27,210.26,26.0]
[1756896933169,0.06,210.27,210.26,65.5675789]
[1756896933361,0.06,210.27,210.26,68.17329366]
[1756896934587,0.06,210.27,210.26,72.92931002]
[1756896937970,0.06,210.27,210.26,152.62931002]
[1756896945099,0.06,210.27,210.26,149.76173112]
[1756896945419,0.06,210.27,210.26,152.60931002]
[1756896946591,0.06,210.27,210.26,115.90931002]
[1756896946892,0.06,210.27,210.26,152.60931002]
[1756896947397,0.06,210.27,210.26,115.20931002]
[1756896947716,0.06,210.27,210.26,152.56931002]
[1756896952211,0.06,210.27,210.26,152.59931002]
[1756896960947,0.06,210.27,210.26,115.23931002]
[1756896961121,0.06,210.27,210.26,151.91931002]
[1756896961320,0.06,210.27,210.26,152.57931002]
[1756896961540,0.06,210.27,210.26,150.67359526]
[1756896961843,0.06,210.27,210.26,145.2575789]
[1756896962013,0.71,210.27,210.26,145.2575789]
[1756896962209,0.71,210.27,210.26,119.2575789]
[1756896963245,0.71,210.27,210.26,36.71]
[1756896964744,5.52374774,210.27,210.26,36.71]
[1756896965345,4.87374774,210.27,210.26,36.71]
[1756896965523,5.52374774,210.27,210.26,36.71]
[1756896966538,4.87374774,210.27,210.26,36.71]
[1756896967246,5.52374774,210.27,210.26,36.71]
[1756896970545,4.87374774,210.27,210.26,36.71]
[1756896970848,5.52374774,210.27,210.26,36.71]
[1756896972529,4.87374774,210.27,210.26,36.71]
[1756896972749,5.57374774,210.27,210.26,36.71]
[1756896974548,4.87374774,210.27,210.26,36.71]
[1756896977443,5.57374774,210.27,210.26,36.71]
[1756896977755,5.57374774,210.27,210.26,0.03]
[1756896977954,8.42132664,210.27,210.26,0.03]
[1756896978145,5.57374774,210.27,210.26,0.03]
[1756896978345,8.42132664,210.27,210.26,0.03]
[1756896978560,13.17711681,210.27,210.26,0.03]
[1756896979556,14.77933657,210.27,210.26,0.03]
[1756896984069,10.32953791,210.27,210.26,0.03]
[1756896984447,14.77933657,210.27,210.26,0.03]
[1756896985674,10.32953791,210.27,210.26,0.03]
[1756896985865,4.87374774,210.27,210.26,0.7]
[1756896986076,0.06,210.27,210.26,5.14979866]
[1756896986670,0.06,210.27,210.26,0.7]
[1756896989969,0.06,210.27,210.26,0.03]
[1756896990480,9.96558883,210.27,210.26,0.03]
[1756896990653,0.06,210.27,210.26,5.14979866]
[1756896991450,0.06,210.27,210.26,0.7]
[1756896991654,0.06,210.27,210.26,5.14979866]
[1756896992557,0.06,210.27,210.26,9.90581502]
[1756896994065,0.06,210.27,210.26,0.7]
[1756896994456,0.06,210.27,210.26,37.38]
[1756896994773,0.06,210.27,210.26,41.82979866]
[1756896995185,0.06,210.27,210.26,46.58581502]
[1756896996773,0.06,210.27,210.26,5.14979866]
[1756896997064,0.06,210.27,210.26,41.82979866]
[1756896997861,0.06,210.27,210.26,46.58581502]
[1756896998672,0.06,210.27,210.26,9.90581502]
[1756896998874,0.06,210.27,210.26,46.58581502]
[1756896999765,0.06,210.27,210.26,0.7]
[1756896999999,0.06,210.27,210.26,46.56581502]
[1756897000472,0.06,210.27,210.26,126.26581502]
[1756897000669,0.06,210.27,210.26,85.15601636]
[1756897000874,0.06,210.27,210.26,46.56581502]
[1756897001703,0.06,210.27,210.26,9.90581502]
[1756897001998,0.06,210.27,210.26,46.56581502]
[1756897002494,0.06,210.27,210.26,9.90581502]
[1756897002694,0.06,210.27,210.26,46.56581502]
[1756897004264,0.06,210.27,210.26,5.14979866]
[1756897004470,0.06,210.27,210.26,0.03]
[1756897004765,0.06,210.27,210.26,36.69]
[1756897005393,0.06,210.27,210.26,46.55581502]
[1756897005695,0.06,210.27,210.26,42.10601636]
[1756897006200,0.06,210.27,210.26,41.79979866]
[1756897006395,0.06,210.27,210.26,46.55581502]
[1756897006982,0.06,210.27,210.26,48.46152978]
[1756897007208,0.06,210.27,210.26,11.80152978]
[1756897007388,0.06,210.27,210.26,46.55581502]
[1756897010185,0.06,210.27,210.26,0.03]
[1756897010384,0.06,210.27,210.26,41.13979866]
[1756897010581,0.06,210.27,210.26,45.89581502]
[1756897010791,0.06,210.27,210.26,0.03]
[1756897010989,0.73,210.27,210.26,36.69]
[1756897011497,0.06,210.27,210.26,36.69]
[1756897015995,0.06,210.27,210.26,42.10601636]
[1756897016188,0.06,210.27,210.26,46.55581502]
[1756897019903,0.06,210.27,210.26,48.46152978]
[1756897021285,0.06,210.27,210.26,44.01173112]
[1756897021490,0.06,210.27,210.26,48.46152978]
[1756897023929,0.06,210.27,210.26,128.16152978]
[1756897024105,0.06,210.27,210.26,91.50152978]
[1756897024301,0.06,210.27,210.26,128.16152978]
[1756897027922,0.06,210.29,210.28,39.59559401]
[1756897028220,0.06,210.29,210.28,81.27606035]
[1756897028424,0.06,210.29,210.28,81.93606035]
[1756897029006,0.06,210.29,210.28,83.84150277]
[1756897029900,0.06,210.29,210.28,88.02639909]
[1756897030331,0.06,210.29,210.28,33.32100642]
[1756897030535,0.06,210.29,210.28,69.98100642]
[1756897030726,0.06,210.29,210.28,74.43080508]
[1756897031430,0.06,210.29,210.28,69.98100642]
[1756897031604,0.06,210.29,210.28,74.43080508]
[1756897032814,0.06,210.29,210.28,154.13080508]
[1756897041527,0.06,210.29,210.28,152.5251755]
[1756897042029,0.06,210.29,210.28,151.8451755]
[1756897042263,0.06,210.29,210.28,152.5051755]
[1756897046144,0.06,210.29,210.28,115.8651755]
[1756897046339,0.06,210.29,210.28,151.8451755]
[1756897047047,0.06,210.29,210.28,152.5051755]
[1756897048743,0.06,210.29,210.28,115.2051755]
[1756897048935,0.06,210.29,210.28,151.8451755]
[1756897049642,0.71,210.29,210.28,79.7]
[1756897049838,0.71,210.29,210.28,116.34]
[1756897051250,0.71,210.29,210.26,1.93580556]
[1756897051434,0.65,210.28,210.27,36.64]
[1756897051839,0.65,210.28,210.27,36.67]
[1756897052258,0.06,210.29,210.27,36.67]
[1756897052555,0.71,210.29,210.27,39.51416908]
[1756897056552,0.06,210.29,210.28,2.84416908]
[1756897056760,0.06,210.29,210.28,3.50416908]
[1756897056951,0.06,210.29,210.28,8.25973308]
[1756897057658,0.06,210.29,210.28,7.59973308]
[1756897058658,0.06,210.29,210.28,8.25973308]
[1756897058864,0.06,210.29,210.28,102.41031791]
[1756897059066,0.06,210.29,210.28,101.83965023]
[1756897060141,0.06,210.29,210.28,103.74491113]
[1756897062474,0.06,210.3,210.29,13.59559401]
[1756897062768,0.06,210.3,210.29,134.07040363]
[1756897062947,0.06,210.3,210.29,133.49976309]
[1756897063149,0.06,210.3,210.29,135.405024]
[1756897064443,0.06,210.3,210.29,140.16036186]
[1756897066057,0.06,210.3,210.29,137.31619278]
[1756897066258,0.06,210.3,210.29,139.44036186]
[1756897067255,0.06,210.3,210.29,140.16036186]
[1756897067773,0.06,210.3,210.29,103.52036186]
[1756897067960,0.06,210.3,210.29,140.16036186]
[1756897068757,0.06,210.3,210.29,46.14476785]
[1756897068962,0.06,210.3,210.29,9.50476785]
[1756897069154,0.06,210.3,210.29,6.66059877]
[1756897069466,0.06,210.3,210.29,43.30059877]
[1756897069970,0.06,210.3,210.29,60.46036186]
[1756897070759,0.06,210.3,210.29,60.49036186]
[1756897071365,0.06,210.3,210.29,43.33059877]
[1756897071872,0.06,210.3,210.29,46.89476785]
[1756897072178,0.06,210.3,210.29,46.17476785]
[1756897072782,0.06,210.3,210.29,46.89476785]
[1756897073352,0.06,210.3,210.29,60.49036186]
[1756897073761,0.06,210.3,210.29,61.0610024]
[1756897074376,0.06,210.3,210.29,60.49036186]
[1756897074582,0.06,210.3,210.29,140.19036186]
[1756897077566,1e-08,210.3,210.29,140.19036186]
[1756897085977,1e-08,210.3,210.29,137.34619278]
[1756897086179,1e-08,210.3,210.29,140.19036186]
[1756897087065,1e-08,210.3,210.29,140.21036186]
[1756897087970,1e-08,210.3,210.29,102.83036186]
[1756897088173,1e-08,210.3,210.29,139.49036186]
[1756897088882,1e-08,210.3,210.29,140.21036186]
[1756897091373,1e-08,210.3,210.29,103.55036186]
[1756897091573,1e-08,210.3,210.29,140.19036186]
[1756897099770,1e-08,210.3,210.29,139.47036186]
[1756897099976,1e-08,210.3,210.29,140.19036186]
[1756897103598,1e-08,210.3,210.29,141.78995623]
[1756897104297,0.92,210.39,210.33,39.59559401]
[1756897104595,0.92,210.39,210.34,54.67935746]
[1756897104814,0.92,210.39,210.34,55.39935746]
[1756897104977,0.92,210.39,210.34,57.30425543]
[1756897105179,0.78,210.38,210.34,57.30425543]
[1756897105401,0.78,210.38,210.34,56.58425543]
[1756897106177,0.78,210.38,210.34,57.30425543]
[1756897106599,0.78,210.38,210.34,61.3384629]
[1756897110098,0.78,210.38,210.34,141.0384629]
[1756897110682,0.78,210.38,210.34,141.7584629]
[1756897110878,0.06,210.38,210.34,141.7584629]
[1756897112883,0.06,210.38,210.35,13.87991715]
[1756897113090,1e-08,210.36,210.35,24.05792182]
[1756897113501,1e-08,210.36,210.35,25.96254768]
[1756897113703,1e-08,210.36,210.35,21.51878423]
[1756897114488,1e-08,210.36,210.35,16.79069764]
[1756897114698,1e-08,210.36,210.35,62.60844254]
[1756897116103,1e-08,210.36,210.35,142.30844254]
[1756897116404,1e-08,210.36,210.35,141.73796477]
[1756897119098,1e-08,210.36,210.35,146.46605136]
[1756897119496,1e-08,210.36,210.35,142.02228791]
[1756897121809,1e-08,210.36,210.35,105.40228791]
[1756897122000,0.06,210.38,210.37,39.59559401]
[1756897122316,0.06,210.38,210.37,44.03935746]
[1756897122815,0.06,210.38,210.37,82.56398332]
[1756897123710,0.06,210.38,210.37,87.31751281]
[1756897127130,0.75,210.38,210.37,37.1019188]
[1756897127298,0.75,210.38,210.37,47.7219188]
[1756897127498,0.75,210.38,210.37,43.27815535]
[1756897130119,5.19376345,210.38,210.37,38.52462586]
[1756897130921,5.19376345,210.38,210.37,36.62]
[1756897131424,9.94717417,210.38,210.37,36.62]
[1756897131819,5.19376345,210.38,210.37,36.62]
[1756897133321,0.75,210.38,210.37,36.62]
[1756897133509,5.19376345,210.38,210.37,36.62]
[1756897136734,0.75,210.38,210.37,36.62]
[1756897136949,5.19376345,210.38,210.37,36.62]
[1756897138208,9.94706699,210.38,210.37,36.62]
[1756897138813,9.94706699,210.38,210.36,36.62]
[1756897139029,4.44376345,210.37,210.36,36.62]
[1756897139212,5.13376345,210.37,210.36,36.62]
[1756897140638,5.13376345,210.37,210.36,36.65]
[1756897141839,4.44376345,210.37,210.36,36.65]
[1756897142137,5.13376345,210.37,210.36,36.65]
[1756897142367,0.06,210.38,210.36,36.65]
[1756897142538,0.06,210.38,210.36,37.31]
[1756897142724,0.06,210.38,210.36,42.06374174]
[1756897143124,0.06,210.38,210.36,37.31]
[1756897143321,0.06,210.38,210.36,36.65]
[1756897143518,4.50376345,210.38,210.36,36.65]
[1756897143731,0.06,210.38,210.36,36.65]
[1756897143931,4.50376345,210.38,210.36,36.65]
[1756897144638,4.44376345,210.37,210.36,36.65]
[1756897148916,4.50376345,210.38,210.36,36.65]
[1756897149117,5.13376345,210.37,210.36,0.03]
[1756897151026,4.44376345,210.37,210.36,0.03]
[1756897152148,9.86729294,210.37,210.36,0.03]
[1756897153035,25.36869251,210.37,210.36,0.03]
[1756897154053,29.81245596,210.37,210.36,0.03]
[1756897154549,35.47928358,210.37,210.36,0.03]
[1756897155749,13.59559401,210.35,210.34,0.03]
[1756897155942,44.03935746,210.35,210.34,0.03]
[1756897156143,23.46333891,210.35,210.34,0.03]
[1756897156338,25.36950775,210.35,210.34,0.03]
[1756897157431,25.36950775,210.35,210.33,0.03]
[1756897157637,44.03935746,210.34,210.31,0.03]
[1756897157937,18.03935746,210.32,210.31,0.03]
[1756897158346,23.46401702,210.32,210.31,0.03]
[1756897158542,25.37045841,210.32,210.31,0.03]
[1756897159176,6.66110095,210.32,210.31,0.03]
[1756897159347,11.1048644,210.32,210.31,0.03]
[1756897159536,6.66110095,210.32,210.31,0.03]
[1756897159741,6.35020484,210.32,210.31,0.03]
[1756897160272,11.7748644,210.32,210.31,0.03]
[1756897160567,11.1048644,210.32,210.31,0.03]
[1756897160767,11.7748644,210.32,210.31,0.03]
[1756897161266,1.90644139,210.32,210.31,0.03]
[1756897161467,1.90644139,210.32,210.31,0.72]
[1756897161631,4.44376345,210.32,210.31,0.03]
[1756897162385,9.86842301,210.32,210.31,0.03]
[1756897162667,11.77468269,210.32,210.31,0.03]
[1756897163458,10.17831223,210.32,210.31,0.03]
[1756897167145,23.77390624,210.32,210.31,0.03]
[1756897171251,30.75511174,210.3,210.29,0.03]
[1756897171450,33.60250473,210.3,210.29,0.03]
[1756897171968,34.27250473,210.3,210.29,0.03]
[1756897172350,32.661644,210.3,210.29,0.03]
[1756897172549,35.50903699,210.3,210.29,0.03]
[1756897174547,36.17903699,210.3,210.29,0.03]
[1756897176166,35.50903699,210.3,210.29,0.03]
[1756897176657,72.81903699,210.3,210.29,0.03]
[1756897180274,72.14903699,210.3,210.29,0.03]
[1756897180574,35.50903699,210.3,210.29,0.03]
[1756897180877,72.14903699,210.3,210.29,0.03]
[1756897181250,72.81903699,210.3,210.29,0.03]
[1756897181450,72.14903699,210.3,210.29,0.03]
[1756897181873,72.84903699,210.3,210.29,0.03]
[1756897182055,72.14903699,210.3,210.29,0.03]
[1756897182754,35.50903699,210.3,210.29,0.03]
[1756897182952,35.50903699,210.3,210.29,0.72]
[1756897183168,1.90653226,210.3,210.29,0.72]
[1756897183381,28.84739299,210.3,210.29,0.72]
[1756897183556,30.75374352,210.3,210.29,0.72]
[1756897183755,28.84739299,210.3,210.29,0.72]
[1756897184455,33.60250473,210.3,210.29,0.72]
[1756897190165,33.60250473,210.3,210.29,0.03]
[1756897190365,33.60250473,210.3,210.29,0.72]
[1756897190689,33.60250473,210.3,210.29,0.03]
[1756897190981,33.60250473,210.3,210.29,0.72]
[1756897191185,34.30250473,210.3,210.29,0.03]
[1756897191494,70.24250473,210.3,210.29,0.03]
[1756897194980,70.94250473,210.3,210.29,0.03]
[1756897195177,84.53809874,210.3,210.29,0.03]
[1756897195585,86.44472187,210.3,210.29,0.03]
[1756897196087,83.59732888,210.3,210.29,0.03]
[1756897196263,83.83809874,210.3,210.29,0.03]
[1756897197284,85.74472187,210.3,210.29,0.03]
[1756897197492,83.83809874,210.3,210.29,0.03]
[1756897198594,84.53809874,210.3,210.29,0.03]
[1756897199087,86.44472187,210.3,210.29,0.03]
[1756897199475,85.74472187,210.3,210.29,0.03]
[1756897200196,86.44472187,210.3,210.29,0.03]
[1756897200578,19.13615921,210.29,210.28,0.03]
[1756897200770,22.10981462,210.29,210.28,0.03]
[1756897200971,22.80981462,210.29,210.28,0.03]
[1756897201190,22.80981462,210.29,210.27,0.03]
[1756897201378,2.84739299,210.28,210.27,0.03]
[1756897201579,7.57381434,210.29,210.27,0.03]
[1756897201783,44.24295699,210.28,210.27,0.72]
[1756897201984,44.24295699,210.28,210.27,0.03]
[1756897202988,28.84739299,210.28,210.27,0.03]
[1756897203189,65.48739299,210.28,210.27,0.03]
[1756897203381,65.48739299,210.28,210.27,0.72]
[1756897203795,65.48739299,210.28,210.27,0.03]
[1756897205594,28.84739299,210.28,210.27,0.72]
[1756897205995,65.48739299,210.28,210.27,0.03]
[1756897206200,28.84739299,210.28,210.27,0.72]
[1756897206377,65.48739299,210.28,210.27,0.72]
[1756897206577,65.48739299,210.28,210.27,0.03]
[1756897207506,65.48739299,210.28,210.27,0.72]
[1756897208476,28.84739299,210.28,210.27,0.72]
[1756897208875,13.65559401,210.31,210.27,0.72]
[1756897208876,36.7,210.31,210.27,0.72]
[1756897209190,2.84739299,210.3,210.27,0.72]
[1756897209500,2.84739299,210.3,210.27,0.03]
[1756897209501,28.84739299,210.28,210.27,0.03]
[1756897209795,65.52739299,210.28,210.27,0.03]
[1756897209989,79.122987,210.28,210.27,0.03]
[1756897210193,85.48981462,210.28,210.27,0.03]
[1756897210502,5.66682762,210.27,210.26,0.03]
[1756897210794,9.21422061,210.27,210.26,0.03]
[1756897211002,8.51422061,210.27,210.26,0.03]
[1756897211181,9.21422061,210.27,210.26,0.03]
[1756897212713,8.51422061,210.27,210.26,0.03]
[1756897212882,58.84981462,210.27,210.26,0.03]
[1756897214684,59.52981462,210.27,210.26,0.03]
[1756897216181,58.84981462,210.27,210.26,0.03]
[1756897217811,13.59559401,210.26,210.24,0.03]
[1756897217982,42.43478598,210.25,210.24,0.03]
[1756897218496,44.34204548,210.25,210.24,0.03]
[1756897218884,45.02204548,210.25,210.24,0.03]
[1756897219087,58.61763949,210.25,210.24,0.03]
[1756897219300,58.61763949,210.25,210.23,0.03]
[1756897219301,64.28446711,210.25,210.23,0.03]
[1756897219501,19.97037999,210.24,210.23,0.03]
[1756897219675,25.63720761,210.24,210.22,0.03]
[1756897219997,36.74,210.23,210.22,0.03]
[1756897220198,39.58739299,210.23,210.22,0.03]
[1756897220388,40.26739299,210.23,210.22,0.03]
[1756897220593,42.1748344,210.23,210.22,0.03]
[1756897221588,41.4948344,210.23,210.22,0.03]
[1756897221789,42.1748344,210.23,210.22,0.03]
[1756897221994,47.84166202,210.23,210.22,0.03]